[Event "Czech Championship 2024"]
[Site "Ostrava"]
[Date "2024.05.01"]
[Round "5.2"]
[White "Stalmach, Richard"]
[Black "Neuman, Petr"]
[Result "1/2-1/2"]
[ECO "D94"]
[WhiteElo "2446"]
[BlackElo "2429"]
[Annotator "TA"]
[PlyCount "61"]
[EventDate "2024.04.25"]
[EventType "tourn"]
[EventCountry "CZE"]
[SourceTitle "playchess.com"]
[Source "ChessBase"]
[SourceQuality "1"]
[TimeControl "40/5400+30:1800+30"]

{[%evp 27,61,33,28,0,0,0,0,0,0,0,0,0,0,0,0,0,0,0,0,0,0,0,0,0,0,-4,0,0,0,0,0,0,0,0,0,0]} 1. Nf3 {[%emt 0:00:05]} d5 {[%emt 0:00:17]} 2. c4 {[%emt 0:00:21]} c6 {[%emt 0:00:14]} 3. d4 {[%emt 0:00:21]} Nf6 {[%emt 0:00:12]} 4. e3 {[%emt 0:00:57]} g6 {[%emt 0:00:52]} 5. Nc3 {[%emt 0:02:48]} Bg7 {[%emt 0:00:33]} 6. Bd3 {[%emt 0:00:45]} O-O {[%emt 0:00:10]} 7. O-O {[%emt 0:00:06]} dxc4 {[%emt 0:00:39]} 8. Bxc4 {[%emt 0:00:06]} Bg4 {[%emt 0:00:17]} 9. h3 {[%emt 0:01:46]} Bxf3 {[%emt 0:01:01]} 10. Qxf3 {[%emt 0:00:39]} Nbd7 {[%emt 0:00:15]} 11. Rd1 {[%emt 0:03:11]} e5 {[%emt 0:00:38]} 12. d5 {[%emt 0:07:31]} e4 {[%emt 0:01:03]} 13. Nxe4 {[%emt 0:06:44]} Nxe4 {[%emt 0:00:43]} 14. Qxe4 {[%emt 0:00:04]} Nb6 {[%emt 0:00:29]} 15. d6 {[%emt 0:12:51]} (15. Qc2 {simplifies} Nxc4 16. Qxc4 cxd5 17. Rxd5 Qb6 18. e4) 15... Re8 {[%emt 0:01:49] The position is equal.} 16. Qc2 {[%emt 0:00:15]} Nxc4 {[%emt 0:00:07]} 17. Qxc4 {[%emt 0:00:03]} Re6 {[%emt 0:00:10]} 18. d7 {[%emt 0:04:45]} Qc7 {[%emt 0:07:28]} 19. Bd2 {[%emt 0:29:54]} Rd8 {[%emt 0:02:05]} 20. Bc3 {[%emt 0:06:23]} Rxd7 {[%emt 0:02:54]} 21. Qa4 {[%emt 0:02:18]} b6 {[%emt 0:05:03]} 22. Bxg7 {[%emt 0:00:18]} Kxg7 {[%emt 0:00:13]} 23. Rd4 {[%emt 0:00:37]} Rxd4 {[%emt 0:02:18]} 24. Qxd4+ $11 {[%emt 0:00:05][%mdl 4096] Endgame. KQR-KQR} Qe5 {[%emt 0:00:06]} 25. Rd1 {[%emt 0:00:19]} Qxd4 {[%emt 0:00:28]} 26. Rxd4 {[%emt 0:00:04] KR-KR} Kf6 {[%emt 0:00:09]} 27. Kf1 {[%emt 0:01:46]} Ke7 {[%emt 0:00:44]} 28. Ke2 {[%emt 0:01:18]} Rd6 {[%emt 0:00:05]} 29. Kd3 {[%emt 0:03:05]} c5 {[%emt 0:01:44]} 30. Rxd6 {[%emt 0:00:04]} Kxd6 {[%emt 0:00:03]} 31. f4 {[%emt 0:16:31] An interesting draw.   Weighted Error Value: White=0.02 (flawless) /Black=0.00 (flawless) .  OK:         	White=8     	Black=9} 1/2-1/2

[Event "Czech Championship 2024"]
[Site "Ostrava"]
[Date "2024.05.01"]
[Round "5.3"]
[White "Finek, Vaclav"]
[Black "Simacek, Pavel"]
[Result "1/2-1/2"]
[ECO "E06"]
[WhiteElo "2431"]
[BlackElo "2446"]
[Annotator "RC"]
[PlyCount "90"]
[EventDate "2024.04.25"]
[EventType "tourn"]
[EventCountry "CZE"]
[SourceTitle "playchess.com"]
[Source "ChessBase"]
[SourceQuality "1"]
[TimeControl "40/5400+30:1800+30"]

1. d4 {[%emt 0:00:02]} Nf6 {[%emt 0:00:09]} 2. c4 {[%emt 0:00:05]} e6 {[%emt 0:00:21]} 3. g3 {[%emt 0:00:04]} d5 {[%emt 0:00:23]} 4. Bg2 {[%emt 0:00:07]} Be7 {[%emt 0:00:11]} 5. Nf3 {[%emt 0:00:06]} Ne4 {[%emt 0:00:16]} 6. O-O {[%emt 0:04:52]} f5 {[%emt 0:00:08]} 7. Ne5 {[%emt 0:04:33]} Nd7 {[%emt 0:00:59]} 8. Nxd7 {[%emt 0:03:39]} Bxd7 {[%emt 0:00:24]} 9. Nd2 {[%emt 0:07:12]} Nxd2 {[%emt 0:09:26]} 10. Bxd2 {[%emt 0:00:18]} c6 {[%emt 0:00:03]} 11. Qc2 {[%emt 0:02:56]} Bf6 {[%emt 0:03:10]} 12. e3 {[%emt 0:00:39]} a5 {[%emt 0:13:36]} 13. b4 {[%emt 0:06:35]} axb4 {[%emt 0:10:25]} 14. Bxb4 {[%emt 0:00:17]} Qb8 {[%emt 0:00:07]} 15. a4 {[%emt 0:07:28]} h5 {[%emt 0:02:08]} 16. Rfb1 {[%emt 0:03:41]} Kf7 {[%emt 0:01:48]} 17. Bc5 {[%emt 0:01:34]} h4 {[%emt 0:01:08]} 18. a5 {[%emt 0:06:45]} hxg3 {[%emt 0:00:35]} 19. hxg3 {[%emt 0:00:41]} Qc7 {[%emt 0:05:26]} 20. Qb3 {[%emt 0:13:49]} Bc8 {[%emt 0:01:32]} 21. Qb4 {[%emt 0:00:13]} Kg8 {[%emt 0:10:26]} 22. Rc1 {[%emt 0:02:35]} Qf7 {[%emt 0:00:45]} 23. Bd6 {[%emt 0:01:48]} Ra6 {[%emt 0:02:57]} 24. Qb3 {[%emt 0:10:53]} Qd7 {[%emt 0:01:19]} 25. Be5 {[%emt 0:02:52]} Bd8 {[%emt 0:02:07]} 26. Qc3 {[%emt 0:00:17]} Qf7 {[%emt 0:07:49]} 27. Bf3 {[%emt 0:00:38]} Rh6 {[%emt 0:02:56]} 28. Kg2 {[%emt 0:02:21]} Bd7 {[%emt 0:04:37]} 29. Qb3 {[%emt 0:03:28]} Be8 {[%emt 0:05:50]} 30. cxd5 {[%emt 0:03:50]} exd5 {[%emt 0:00:15]} 31. Rab1 {[%emt 0:02:14]} b6 {[%emt 0:01:17]} 32. axb6 {[%emt 0:00:43]} Rxb6 {[%emt 0:00:04]} 33. Qa2 {[%emt 0:01:07]} Rxb1 {[%emt 0:01:51]} 34. Rxb1 {[%emt 0:01:09]} g5 {[%emt 0:01:22]} 35. Kg1 {[%emt 0:01:21]} Bf6 {[%emt 0:02:27]} 36. Qa8 {[%emt 0:05:18]} Bxe5 {[%emt 0:05:21]} 37. dxe5 {[%emt 0:00:04]} g4 {[%emt 0:00:06]} 38. Rb7 {[%emt 0:00:50]} Qh5 {[%emt 0:00:19]} 39. Bg2 {[%emt 0:02:19]} Re6 {[%emt 0:00:21]} 40. Qc8 {[%emt 0:00:29]} Qh6 {[%emt 0:02:53]} 41. Rb6 {[%emt 0:07:26]} Kf7 {[%emt 0:04:54]} 42. Qc7+ {[%emt 0:02:53]} Kf8 {[%emt 0:00:26]} 43. Qb8 {[%emt 0:04:00]} Qg6 {[%emt 0:08:39]} 44. Rb7 {[%emt 0:03:15]} Qh6 {[%emt 0:02:10]} 45. Rb6 {[%emt 0:01:07]} Qg6 {[%emt 0:19:34]} 1/2-1/2

[Event "Czech Championship 2024"]
[Site "Ostrava"]
[Date "2024.05.01"]
[Round "5.4"]
[White "Jirovsky, Milos"]
[Black "Navara, David"]
[Result "0-1"]
[ECO "A37"]
[WhiteElo "2450"]
[BlackElo "2678"]
[Annotator "TA"]
[PlyCount "84"]
[EventDate "2024.04.25"]
[EventType "tourn"]
[EventCountry "CZE"]
[SourceTitle "playchess.com"]
[Source "ChessBase"]
[SourceQuality "1"]
[TimeControl "40/5400+30:1800+30"]

{[%evp 19,84,0,0,-2,0,-11,9,0,0,-21,-15,-27,-20,-43,-43,-68,-67,-120,-75,-93,-103,-104,-82,-270,-254,-281,-302,-271,-288,-212,-159,-213,-151,-157,-147,-138,-148,-141,-146,-201,-197,-190,-177,-256,-212,-225,-224,-227,-206,-229,-144,-216,-206,-200,-186,-302,-294,-300,-294,-296,-289,-298,-286,-297,-284,-390,-370]} 1. Nf3 {[%emt 0:00:03]} g6 {[%emt 0:00:05]} 2. c4 {[%emt 0:00:16]} Bg7 {[%emt 0:00:06]} 3. Nc3 {[%emt 0:00:22]} c5 {[%emt 0:00:05]} 4. g3 {[%emt 0:00:08]} Nc6 {[%emt 0:00:03]} 5. Bg2 {[%emt 0:00:07]} Rb8 {[%emt 0:00:16]} 6. O-O {[%emt 0:02:56]} d6 {[%emt 0:00:15]} 7. d3 {[%emt 0:02:08]} a6 {[%emt 0:00:56]} 8. a4 {[%emt 0:00:59]} Nh6 {[%emt 0:00:59]} 9. Bd2 {[%emt 0:03:19]} Nf5 {[%emt 0:02:05]} 10. Rb1 {[%emt 0:05:18]} O-O {[%emt 0:02:17]} 11. Na2 {[%emt 0:06:44]} b6 {[%emt 0:20:28]} 12. Bc3 {[%emt 0:05:04]} Bb7 {[%emt 0:05:57]} 13. Bxg7 {[%emt 0:01:31] The position is equal.} Kxg7 {[%emt 0:00:11]} 14. Nd2 {[%emt 0:03:09]} a5 {[%emt 0:08:56]} 15. e3 {[%emt 0:10:33]} e6 {[%emt 0:02:18]} 16. Qb3 {[%emt 0:05:06]} h5 {[%emt 0:02:13]} 17. Rbe1 {[%emt 0:02:29]} h4 {[%emt 0:01:57]} 18. Qd1 {[%emt 0:16:17]} (18. Be4 $15) 18... Rh8 {[%emt 0:05:26] ...hxg3 would now be deadly.} 19. g4 {[%emt 0:06:53] [#]} h3 $1 {[%emt 0:01:00]} 20. Bh1 {[%emt 0:00:07][%cal Of2f4]} Nh4 {[%emt 0:15:32][%cal Oh4g2] Hoping for ...Ng2!} 21. e4 $2 {[%emt 0:02:20] [#] This costs White the game.} (21. f4 $17 {was called for.}) 21... Ng2 $1 $19 {[%emt 0:02:49][%mdl 512]} 22. Bxg2 {[%emt 0:00:53]} hxg2 {[%emt 0:00:06]} 23. Kxg2 {[%emt 0:00:10]} Qh4 {[%emt 0:00:13] Inhibits h3. ( -> ...Qh3+)} 24. Rh1 {[%emt 0:00:33]} Qh3+ {[%emt 0:06:39]} 25. Kg1 {[%emt 0:00:02]} Rh4 {[%emt 0:00:49]} ({Resist} 25... Qxd3 26. Re3 Qd4 27. Nc3) 26. Re3 {[%emt 0:03:37]} Qxg4+ {[%emt 0:01:46]} (26... Rxg4+ $2 27. Rg3 Ne5 28. Rxg4 Nxg4 29. Qf1 $19) 27. Qxg4 {[%emt 0:00:06]} Rxg4+ {[%emt 0:00:07]} 28. Kf1 {[%emt 0:00:16]} d5 $36 {[%emt 0:01:43][%mdl 2048] Black is really pushing. Black is more active.} 29. Rg1 {[%emt 0:07:05]} (29. cxd5 $17 exd5 30. f3) 29... Rxg1+ {[%emt 0:05:30]} 30. Kxg1 {[%emt 0:00:01]} dxe4 {[%emt 0:00:17]} 31. Nxe4 {[%emt 0:01:47]} (31. dxe4 $142 Rd8 32. Re2) 31... Rd8 {[%emt 0:00:57]} 32. Kf1 {[%emt 0:06:15]} Nd4 {[%emt 0:01:21]} 33. Rh3 {[%emt 0:00:42]} f6 {[%emt 0:05:42] Dodges Ng5} 34. f4 {[%emt 0:02:27]} Nb3 {[%emt 0:04:39] ...Bxe4 is the strong threat.} 35. Ke1 {[%emt 0:04:51]} (35. Nac3 $17) 35... Bxe4 {[%emt 0:02:20]} 36. dxe4 {[%emt 0:00:02][%mdl 4096] Endgame. KRN-KRN} Nd2 {[%emt 0:00:06]} 37. f5 {[%emt 0:00:36]} (37. Nc1 {keeps fighting.}) 37... Nxc4 {[%emt 0:01:28]} ({Don't play} 37... gxf5 38. exf5 exf5 39. b3 $19) 38. fxe6 {[%emt 0:00:18]} Nxb2 {[%emt 0:00:39]} 39. Nc3 {[%emt 0:01:01]} Re8 {[%emt 0:00:29]} 40. Kd2 {[%emt 0:01:13]} Rxe6 {[%emt 0:00:08]} 41. Kc2 {[%emt 0:32:09]} Nc4 {[%emt 0:30:14]} 42. Rd3 {[%emt 0:00:14]} Nd6 {[%emt 0:00:32] Weighted Error Value: White=0.31/Black=0.14 (very precise) .  Loses game:     	White=1     	---        Mistake:       	White=5     	---        Inaccurate:     	White=2     	Black=2      OK:         	White=6     	Black=13     Best:        	White=2     	Black=1      Strong:       	---       	Black=1      Brilliant:      	---       	Black=1} 0-1

[Event "Czech Championship 2024"]
[Site "Ostrava"]
[Date "2024.05.01"]
[Round "5.5"]
[White "Stocek, Jiri"]
[Black "Kraus, Tomas"]
[Result "0-1"]
[ECO "D32"]
[WhiteElo "2531"]
[BlackElo "2488"]
[Annotator "TA"]
[PlyCount "72"]
[EventDate "2024.04.25"]
[EventType "tourn"]
[EventCountry "CZE"]
[SourceTitle "playchess.com"]
[Source "ChessBase"]
[SourceQuality "1"]
[TimeControl "40/5400+30:1800+30"]

{[%evp 11,72,42,43,14,62,55,69,58,93,33,54,58,41,35,45,0,0,0,0,0,12,0,14,29,31,42,40,29,36,19,38,17,6,0,0,0,0,-364,-344,-360,-366,-377,-357,-408,-380,-431,-404,-398,-381,-366,-379,-400,-395,-505,-491,-513,-536,-535,-533,-528,-524,-575,-559]} 1. Nf3 {[%emt 0:00:50]} c5 {[%emt 0:02:53]} 2. c4 {[%emt 0:01:31]} e6 {[%emt 0:00:17][%cal Be7e6,Be6d5,Bd5e4][%mdl 32]} 3. d4 {[%emt 0:03:50]} d5 {[%emt 0:00:57]} 4. cxd5 {[%emt 0:00:21]} exd5 {[%emt 0:00:05]} 5. Nc3 {[%emt 0:01:53]} Nf6 {[%emt 0:00:29]} 6. Bg5 {[%emt 0:01:31]} Be6 {[%emt 0:00:29]} 7. Rc1 {[%emt 0:01:41]} c4 {[%emt 0:10:40] [#]} (7... Nc6 $11) 8. e4 $1 $14 {[%emt 0:02:11] Threatens to win with exd5.} dxe4 {[%emt 0:01:45]} 9. Ne5 {[%emt 0:02:13] White is slightly better.} Nbd7 {[%emt 0:07:17]} 10. Nxd7 {[%emt 0:11:06]} (10. Nxc4 Be7 $14) (10. Bxf6 $1 $16 Qxf6 11. Bxc4 Bxc4 12. Nxc4) 10... Qxd7 {[%emt 0:03:39]} 11. Bxf6 {[%emt 0:00:31]} gxf6 {[%emt 0:00:04]} 12. d5 $1 {[%emt 0:01:40]} Bg4 {[%emt 0:05:42]} 13. Be2 {[%emt 0:06:51]} Bxe2 {[%emt 0:04:12]} 14. Qxe2 {[%emt 0:01:28]} f5 {[%emt 0:01:26]} 15. Qxc4 {[%emt 0:00:30]} Bh6 {[%emt 0:05:28]} 16. Rd1 {[%emt 0:03:48]} O-O $1 {[%emt 0:02:22]} 17. O-O {[%emt 0:02:47]} Rac8 {[%emt 0:02:30]} 18. Qd4 {[%emt 0:05:15]} b5 {[%emt 0:05:39]} 19. d6 {[%emt 0:03:04]} Bg7 {[%emt 0:03:45] Prevents Nd5} 20. Qe3 {[%emt 0:07:39] Black should prevent Rd5.} Rc6 {[%emt 0:11:49]} 21. Qg3 {[%emt 0:03:23][%cal Oc3d5]} Rd8 $1 {[%emt 0:06:06][%cal Rc6d6]} 22. Nxb5 {[%emt 0:01:14]} Rb6 {[%emt 0:05:07]} 23. a4 {[%emt 0:14:24]} a6 {[%emt 0:00:25]} 24. Nd4 {[%emt 0:00:51][%mdl 8192] [#]} (24. Nc3 $11 {and White has nothing to worry.}) 24... f4 $1 $19 {[%emt 0:01:54]} (24... Rxb2 25. Qg5 h6 26. Qh5 (26. Qxf5 Qxd6 27. Qg4 Qg6 $11) 26... Bxd4 27. Rxd4 $16) (24... Rxd6 $2 25. Nxf5 Qxf5 26. Rxd6 $18) 25. Qg5 {[%emt 0:07:52] [#] Black must now prevent Nf5.} h6 $1 {[%emt 0:01:22]} 26. Qxf4 {[%emt 0:01:49] And now Nf5 would win.} Rxd6 {[%emt 0:00:20]} (26... Rxb2 $2 {perishes.} 27. Nf5 (27. Qxe4 Qxd6 28. Qg4 Qb4 $11) 27... Qe6 28. Rfe1 $18 (28. Qg4 Qf6 $18)) 27. Rde1 {[%emt 0:00:55]} Rxd4 {[%emt 0:00:46]} 28. b3 {[%emt 0:00:16]} Qd6 {[%emt 0:01:18]} 29. Qf5 {[%emt 0:00:26]} Qg6 {[%emt 0:00:41]} 30. Qxg6 {[%emt 0:01:28]} fxg6 {[%emt 0:00:04]} 31. Re3 {[%emt 0:00:03]} h5 {[%emt 0:02:34]} 32. h4 {[%emt 0:00:32]} Bh6 {[%emt 0:00:48] Black is clearly winning.} 33. Rc3 {[%emt 0:00:05]} Bd2 {[%emt 0:01:04]} 34. Rc6 {[%emt 0:01:03]} R8d6 {[%emt 0:00:43]} 35. Rc8+ {[%emt 0:00:19]} Kg7 {[%emt 0:00:26]} 36. Rc7+ {[%emt 0:00:44]} Rd7 {[%emt 0:00:35] Weighted Error Value: White=0.37/Black=0.06 (flawless) .  Loses game:     	White=1     	---        Mistake:       	White=1     	Black=1      Inaccurate:     	White=1     	Black=1      OK:         	White=11    	Black=12     Best:        	---       	Black=2      Strong:       	White=1     	Black=4      Brilliant:      	White=1     	---} 0-1

[Event "Czech Championship 2024"]
[Site "Ostrava"]
[Date "2024.05.02"]
[Round "6.1"]
[White "Hrbek, Stepan"]
[Black "Kraus, Tomas"]
[Result "1/2-1/2"]
[ECO "B12"]
[WhiteElo "2407"]
[BlackElo "2488"]
[Annotator "RC"]
[PlyCount "87"]
[EventDate "2024.04.25"]
[EventType "tourn"]
[EventCountry "CZE"]
[SourceTitle "playchess.com"]
[Source "ChessBase"]
[SourceQuality "1"]
[TimeControl "40/5400+30:1800+30"]

1. e4 {[%emt 0:00:08]} c6 {[%emt 0:00:04]} 2. d4 {[%emt 0:00:09]} d5 {[%emt 0:00:03]} 3. e5 {[%emt 0:00:14]} Bf5 {[%emt 0:00:07]} 4. h4 {[%emt 0:00:10]} h5 {[%emt 0:00:06]} 5. Bd3 {[%emt 0:00:11]} Bxd3 {[%emt 0:00:06]} 6. Qxd3 {[%emt 0:00:07]} e6 {[%emt 0:01:12]} 7. Bg5 {[%emt 0:00:33]} Qa5+ {[%emt 0:10:35]} 8. Nd2 {[%emt 0:00:43]} Qa6 {[%emt 0:02:37]} 9. c4 {[%emt 0:00:50]} Ne7 {[%emt 0:12:08]} 10. Ngf3 {[%emt 0:04:05]} Nf5 {[%emt 0:10:06]} 11. O-O {[%emt 0:02:03]} dxc4 {[%emt 0:07:10]} 12. Nxc4 {[%emt 0:05:12]} Nd7 {[%emt 0:01:30]} 13. Qc2 {[%emt 0:10:52]} Nb6 {[%emt 0:03:23]} 14. Ne3 {[%emt 0:01:59]} Ne7 {[%emt 0:02:49]} 15. Nd2 {[%emt 0:08:28]} Ned5 {[%emt 0:06:17]} 16. Nxd5 {[%emt 0:09:46]} Nxd5 {[%emt 0:01:22]} 17. Nc4 {[%emt 0:00:16]} c5 {[%emt 0:03:31]} 18. Ne3 {[%emt 0:10:33]} Nb4 {[%emt 0:01:46]} 19. Qc3 {[%emt 0:01:18]} Qd3 {[%emt 0:12:58]} 20. Rfd1 {[%emt 0:18:45]} Qxc3 {[%emt 0:00:53]} 21. bxc3 {[%emt 0:00:07]} Nc6 {[%emt 0:01:19]} 22. Rab1 {[%emt 0:03:45]} b6 {[%emt 0:00:23]} 23. a4 {[%emt 0:02:17]} Rc8 {[%emt 0:03:22]} 24. d5 {[%emt 0:03:31]} Nxe5 {[%emt 0:03:20]} 25. dxe6 {[%emt 0:02:42]} fxe6 {[%emt 0:00:04]} 26. a5 {[%emt 0:00:03]} bxa5 {[%emt 0:04:26]} 27. f4 {[%emt 0:03:05]} Nf7 {[%emt 0:02:45]} 28. Nc4 {[%emt 0:00:52]} g6 {[%emt 0:03:05]} 29. Re1 {[%emt 0:04:27]} Nxg5 {[%emt 0:02:17]} 30. hxg5 {[%emt 0:00:11]} Rh7 {[%emt 0:01:50]} 31. Rxe6+ {[%emt 0:00:30]} Kf7 {[%emt 0:00:27]} 32. Rf6+ {[%emt 0:01:08]} Kg8 {[%emt 0:01:08]} 33. Rxg6+ {[%emt 0:00:15]} Rg7 {[%emt 0:00:29]} 34. Rxg7+ {[%emt 0:02:06]} Bxg7 {[%emt 0:00:11]} 35. f5 {[%emt 0:00:14]} Bxc3 {[%emt 0:00:21]} 36. Rb7 {[%emt 0:01:15]} Rd8 {[%emt 0:00:41]} 37. f6 {[%emt 0:00:32]} Rd5 {[%emt 0:01:00]} 38. Rg7+ {[%emt 0:02:25]} Kf8 {[%emt 0:00:15]} 39. g6 {[%emt 0:03:01]} Rf5 {[%emt 0:01:35]} 40. Rf7+ {[%emt 0:00:49]} Kg8 {[%emt 0:00:07]} 41. Rg7+ {[%emt 0:07:30]} Kf8 {[%emt 0:01:47]} 42. Rf7+ {[%emt 0:00:28]} Kg8 {[%emt 0:00:05]} 43. Rg7+ {[%emt 0:00:13]} Kf8 {[%emt 0:00:04]} 44. Rf7+ {[%emt 0:00:06]} 1/2-1/2

[Event "Czech Championship 2024"]
[Site "Ostrava"]
[Date "2024.05.02"]
[Round "6.2"]
[White "Navara, David"]
[Black "Stocek, Jiri"]
[Result "1-0"]
[ECO "E10"]
[WhiteElo "2678"]
[BlackElo "2531"]
[Annotator "TA"]
[PlyCount "101"]
[EventDate "2024.04.25"]
[EventType "tourn"]
[EventCountry "CZE"]
[SourceTitle "playchess.com"]
[Source "ChessBase"]
[SourceQuality "1"]
[TimeControl "40/5400+30:1800+30"]

{[%evp 27,101,33,46,19,42,41,64,28,52,41,77,47,52,41,66,26,116,111,164,172,164,164,163,137,211,142,143,144,147,167,378,127,113,0,0,4,79,92,90,69,84,0,0,0,0,0,0,0,0,0,167,177,148,165,164,165,179,0,178,174,170,156,506,486,542,535,496,471,776,776,29986,29987,29994,29995,29995,29996]} 1. d4 {[%emt 0:00:02]} Nf6 {[%emt 0:00:10]} 2. c4 {[%emt 0:00:04]} e6 {[%emt 0:00:15]} 3. Nf3 {[%emt 0:00:05]} h6 {[%emt 0:02:03]} 4. g3 {[%emt 0:03:56]} Bb4+ {[%emt 0:00:27]} 5. Nbd2 {[%emt 0:06:36]} b6 {[%emt 0:00:33]} 6. Bg2 {[%emt 0:02:09] E10: Blumenfeld Gambit.} Bb7 {[%emt 0:00:49]} 7. a3 $146 {[%emt 0:09:39]} ({Predecessor:} 7. O-O O-O 8. a3 Be7 9. b3 c5 10. Bb2 a6 11. e3 d6 12. Qe2 Nbd7 13. Rfd1 {½-½ El Debs,F (2531)-Supi,L (2582) Gaudium Masters-A blitz 2023 (3)}) 7... Bxd2+ {[%emt 0:00:58]} 8. Qxd2 {[%emt 0:01:23]} Be4 {[%emt 0:01:52]} 9. O-O {[%emt 0:04:05]} O-O {[%emt 0:01:14]} 10. b3 {[%emt 0:02:48]} d6 {[%emt 0:07:02]} 11. Bb2 {[%emt 0:00:57]} Nbd7 {[%emt 0:00:25]} 12. Rfd1 {[%emt 0:02:19]} Re8 {[%emt 0:11:46]} 13. Bf1 {[%emt 0:09:18]} Qe7 {[%emt 0:08:50]} 14. Rac1 {[%emt 0:09:32]} Rac8 {[%emt 0:13:44]} 15. Ne5 {[%emt 0:10:26]} Nb8 {[%emt 0:20:57]} 16. Nd3 {[%emt 0:02:10]} c5 {[%emt 0:00:49]} 17. dxc5 {[%emt 0:04:19]} bxc5 {[%emt 0:02:13]} 18. b4 {[%emt 0:00:13]} Nbd7 {[%emt 0:00:39]} 19. Nf4 {[%emt 0:02:27]} e5 {[%emt 0:04:25]} 20. Ng2 {[%emt 0:00:39]} Nb6 {[%emt 0:00:50]} 21. f3 {[%emt 0:03:12]} (21. Qxd6 Qxd6 22. Rxd6 cxb4 23. Rxb6 axb6 24. axb4 b5 $15) 21... cxb4 {[%emt 0:04:40]} (21... d5 $11 {remains equal.}) 22. Ne3 $16 {[%emt 0:05:10]} (22. Qxb4 Bg6 $14) 22... bxa3 {[%emt 0:04:28]} (22... Bc6 $16) 23. Bxa3 $18 {[%emt 0:00:04]} Bc6 {[%emt 0:03:18]} 24. Nf5 {[%emt 0:07:23]} Qe6 {[%emt 0:01:30]} 25. Nxd6 {[%emt 0:01:12]} Ba4 {[%emt 0:05:29]} (25... Red8 $16) 26. c5 {[%emt 0:08:11]} Bxd1 {[%emt 0:01:42]} 27. cxb6 {[%emt 0:00:09]} (27. Nxc8 $6 Rxc8 28. Qxd1 (28. Rxd1 Nc4 $15) 28... Nc4 $11) (27. Nxe8 $6 Nxe8 28. Qxd1 (28. Rxd1 Nc4 $11) 28... Nc4 $14) 27... Rxc1 {[%emt 0:02:06]} 28. Qxc1 {[%emt 0:00:21]} Rf8 $2 {[%emt 0:00:20]} (28... Rd8) 29. Qxd1 $2 {[%emt 0:05:08]} (29. bxa7 Qd7 $16) (29. b7 $18 {is the precise move to win.}) 29... axb6 $16 {[%emt 0:00:09]} 30. e4 {[%emt 0:00:10]} ({Better is} 30. Qa4 $16) 30... Rd8 $11 {[%emt 0:00:50]} 31. Bb5 $1 {[%emt 0:01:03]} Ne8 {[%emt 0:00:48]} (31... Qa2 $11 32. Qd3 Qa1+ 33. Kg2 Qa2+ 34. Kh3 Nh7) 32. Bxe8 $16 {[%emt 0:00:12]} Qxe8 {[%emt 0:00:03]} 33. Qb3 {[%emt 0:00:44]} Qd7 {[%emt 0:00:27]} 34. Qxb6 {[%emt 0:00:41]} (34. Qd5 $1 $16) 34... Ra8 $11 {[%emt 0:00:15]} 35. Bc5 {[%emt 0:00:22]} Qa4 $1 {[%emt 0:00:47]} (35... Qh3 $6 36. Qb2 $16) 36. Kg2 {[%emt 0:00:38]} Qd1 {[%emt 0:00:46]} 37. Qc7 {[%emt 0:00:39]} Ra2+ {[%emt 0:00:30]} 38. Bf2 {[%emt 0:00:13]} Qd2 $2 {[%emt 0:00:38]} (38... Qe2 $11 39. Qxf7+ Kh7) 39. Qxf7+ $18 {[%emt 0:00:32]} Kh8 {[%emt 0:00:03]} 40. Qf8+ {[%emt 0:00:12]} Kh7 {[%emt 0:00:04]} 41. Qf5+ {[%emt 0:30:23]} Kg8 {[%emt 0:04:20]} 42. Qc8+ {[%emt 0:00:00]} Kh7 {[%emt 0:00:02] [#]} 43. Qc5 $1 {[%emt 0:00:00]} (43. Qf5+ Kg8 $11) 43... Rc2 {[%emt 0:06:07] [#]} 44. Qb6 $1 {[%emt 0:00:00]} (44. Qxe5 $2 {perishes.} Qxf2+ 45. Kh3 Rc5 $19 (45... Qxh2+ $2 46. Kg4 $19) (45... Qxf3 $2 46. Qf5+ Qxf5+ 47. exf5 $19)) 44... Rc1 $2 {[%emt 0:05:26]} (44... Qd4 $16 45. Qxd4 exd4) 45. Nf7 $18 {[%emt 0:00:00]} Qd1 {[%emt 0:04:53]} 46. g4 $1 {[%emt 0:00:00]} (46. Nxe5 $2 Qf1#) 46... Rb1 {[%emt 0:00:27]} 47. Qc5 {[%emt 0:00:00]} Qf1+ {[%emt 0:00:46]} (47... Rb2 $142 48. Kg3 (48. Nxe5 Re2 $18) (48. Qxe5 Qe2 $18) 48... Rxf2 49. Qxf2 Qb3) 48. Kg3 $18 {[%emt 0:00:00]} Rb5 {[%emt 0:00:19]} 49. Qc8 {[%emt 0:00:00]} Rb2 {[%emt 0:00:56]} 50. Qh8+ {[%emt 0:00:00]} Kg6 {[%emt 0:00:10]} 51. Nxe5+ {[%emt 0:00:00]} 1-0

[Event "Czech Championship 2024"]
[Site "Ostrava"]
[Date "2024.05.02"]
[Round "6.3"]
[White "Simacek, Pavel"]
[Black "Jirovsky, Milos"]
[Result "1-0"]
[ECO "D13"]
[WhiteElo "2446"]
[BlackElo "2450"]
[Annotator "TA"]
[PlyCount "39"]
[EventDate "2024.04.25"]
[EventType "tourn"]
[EventCountry "CZE"]
[SourceTitle "playchess.com"]
[Source "ChessBase"]
[SourceQuality "1"]
[TimeControl "40/5400+30:1800+30"]

{[%evp 15,39,15,10,10,20,16,13,16,14,14,16,16,19,16,17,0,0,0,0,0,38,36,760,757,758,760]} 1. d4 {[%emt 0:00:09]} Nf6 {[%emt 0:00:12]} 2. c4 {[%emt 0:00:11]} c6 {[%emt 0:00:39]} 3. Nc3 {[%emt 0:00:48]} d5 {[%emt 0:00:07]} 4. cxd5 {[%emt 0:00:52]} cxd5 {[%emt 0:00:13]} 5. Bf4 {[%emt 0:00:26]} Nc6 {[%emt 0:01:14]} 6. Nf3 {[%emt 0:01:10]} a6 {[%emt 0:02:31]} 7. Rc1 {[%emt 0:01:11]} Bf5 {[%emt 0:02:21]} 8. e3 {[%emt 0:01:32]} Rc8 {[%emt 0:06:41]} 9. Be2 {[%emt 0:04:33]} e6 {[%emt 0:25:42]} 10. O-O {[%emt 0:00:55]} Bd6 {[%emt 0:09:16]} 11. Bxd6 {[%emt 0:01:45] The position is equal.} Qxd6 {[%emt 0:00:02]} 12. Na4 {[%emt 0:00:13]} O-O {[%emt 0:00:46]} 13. Nc5 {[%emt 0:05:21]} Rc7 {[%emt 0:00:15]} 14. Qb3 {[%emt 0:03:45]} Rb8 {[%emt 0:00:45]} 15. Qb6 {[%emt 0:17:03][%cal Of3e5]} Ne8 {[%emt 0:01:02][%cal Oc6d4] [#] Threatens to win with ...Nxd4!} 16. Na4 {[%emt 0:08:02]} Rbc8 {[%emt 0:01:47][%cal Oc6d4]} 17. Rc5 {[%emt 0:02:49]} Nd8 {[%emt 0:01:14]} 18. Rfc1 {[%emt 0:16:24] Black must now prevent Qxd6.} Bg4 $2 {[%emt 0:09:47][%mdl 8192]} (18... Rxc5 $14 19. Rxc5 (19. dxc5 Qe7 $11) 19... Qxb6 20. Nxb6 Rxc5 21. dxc5 Nc7) 19. Qxd6 $18 {[%emt 0:00:30]} Rxc5 {[%emt 0:00:14]} 20. Qxc5 {[%emt 0:00:16] Weighted Error Value: White=0.02 (flawless) /Black=0.10 (very precise) .  Loses game:     	---       	Black=1      Inaccurate:     	---       	Black=1      OK:         	White=3     	Black=6      Best:        	White=1     	---} (20. Rxc5 Nxd6 21. Kf1 Nc6 $11) 1-0